{"text_format":"1","workbook":"xlsx","n_sheets":1,"sheets":["МСУ"],"not_rendered":{"charts":0,"images":0,"macros":1,"external_links":0,"defined_names":1,"comments":0,"pivot_tables":0},"unopened":[],"bounds":{"document_bytes":16777216,"sheet_cells":100000,"rows_first":2000,"rows_last":500,"rows_between":2000,"halvings":0,"cell_chars":16384,"cell_head_chars":4096},"cells_cut":0,"cells_raw":0,"read":"whole","date_system":"1900"}

{"sheet":"МСУ","index":0,"n_rows":315,"n_cols":13,"rows_kept":315,"cut":false,"hidden":false,"merged":[]}
[]
[]
[]
[]
[]
[null,null,null,null,"субъект","муниципал","кол-во","ранг",null,null,"субъект","муниципал","кол-во"]
[null,null,null,null,"Краснодарский край","Ленинградский муниципальный район",11,{"$f":"MAX(ISNUMBER(SEARCH({\"район\";\"город\";\"образований\"},F7))*({3;2;1}/1%%+G7%))","v":30000.11},null,null,"Московская область","Ногинский муниципальный район",7]
[null,null,null,null,"Московская область","Ногинский муниципальный район",7,{"$f":"MAX(ISNUMBER(SEARCH({\"район\";\"город\";\"образований\"},F8))*({3;2;1}/1%%+G8%))","v":30000.07},null,null,"Московская область","Сергиево-Посадский муниципальный район",7]
[null,null,null,null,"Московская область","Сергиево-Посадский муниципальный район",7,{"$f":"MAX(ISNUMBER(SEARCH({\"район\";\"город\";\"образований\"},F9))*({3;2;1}/1%%+G9%))","v":30000.07},null,null,"Московская область","Щёлковский муниципальный район",6]
[null,null,null,null,"Саратовская область","Энгельсский муниципальный район",7,{"$f":"MAX(ISNUMBER(SEARCH({\"район\";\"город\";\"образований\"},F10))*({3;2;1}/1%%+G10%))","v":30000.07},null,null,"Московская область","Каширский муниципальный район",5]
[null,null,null,null,"Московская область","Щёлковский муниципальный район",6,{"$f":"MAX(ISNUMBER(SEARCH({\"район\";\"город\";\"образований\"},F11))*({3;2;1}/1%%+G11%))","v":30000.06},null,null,"Московская область","Красногорский муниципальный район",5]
[null,null,null,null,"Липецкая область","Лебедянский муниципальный район",5,{"$f":"MAX(ISNUMBER(SEARCH({\"район\";\"город\";\"образований\"},F12))*({3;2;1}/1%%+G12%))","v":30000.05},null,null,"Московская область","Шатурский муниципальный район",5]
[null,null,null,null,"Московская область","Каширский муниципальный район",5,{"$f":"MAX(ISNUMBER(SEARCH({\"район\";\"город\";\"образований\"},F13))*({3;2;1}/1%%+G13%))","v":30000.05},null,null,"Московская область","Истринский муниципальный район",4]
[null,null,null,null,"Московская область","Красногорский муниципальный район",5,{"$f":"MAX(ISNUMBER(SEARCH({\"район\";\"город\";\"образований\"},F14))*({3;2;1}/1%%+G14%))","v":30000.05},null,null,"Московская область","Раменский муниципальный район",4]
[null,null,null,null,"Московская область","Шатурский муниципальный район",5,{"$f":"MAX(ISNUMBER(SEARCH({\"район\";\"город\";\"образований\"},F15))*({3;2;1}/1%%+G15%))","v":30000.05},null,null,"Московская область","Рузский  муниципальный район",4]
[null,null,null,null,"Республика Алтай","Улаганский  муниципальный район",5,{"$f":"MAX(ISNUMBER(SEARCH({\"район\";\"город\";\"образований\"},F16))*({3;2;1}/1%%+G16%))","v":30000.05},null,null,"Московская область","Воскресенский муниципальный район",3]
[null,null,null,null,"Республика Ингушетия","Муниципальный район Назрановский",5,{"$f":"MAX(ISNUMBER(SEARCH({\"район\";\"город\";\"образований\"},F17))*({3;2;1}/1%%+G17%))","v":30000.05},null,null,"Московская область","Орехово-Зуевский  муниципальный район",3]
[null,null,null,null,"Астраханская область","Муниципальный район Володарский",4,{"$f":"MAX(ISNUMBER(SEARCH({\"район\";\"город\";\"образований\"},F18))*({3;2;1}/1%%+G18%))","v":30000.04},null,null,"Московская область","Солнечногорский муниципальный район",3]
[null,null,null,null,"Астраханская область","Муниципальный район Приволжский",4,{"$f":"MAX(ISNUMBER(SEARCH({\"район\";\"город\";\"образований\"},F19))*({3;2;1}/1%%+G19%))","v":30000.04},null,null,"Московская область","Клинский муниципальный район",2]
[null,null,null,null,"Забайкальский край","Муниципальный район  Александрово-Заводский",4,{"$f":"MAX(ISNUMBER(SEARCH({\"район\";\"город\";\"образований\"},F20))*({3;2;1}/1%%+G20%))","v":30000.04},null,null,"Московская область","Павлово-Посадский муниципальный район",2]
[null,null,null,null,"Краснодарский край","Туапсинский муниципальный район",4,{"$f":"MAX(ISNUMBER(SEARCH({\"район\";\"город\";\"образований\"},F21))*({3;2;1}/1%%+G21%))","v":30000.04},null,null,"Московская область","Чеховский муниципальный район",2]
[null,null,null,null,"Московская область","Истринский муниципальный район",4,{"$f":"MAX(ISNUMBER(SEARCH({\"район\";\"город\";\"образований\"},F22))*({3;2;1}/1%%+G22%))","v":30000.04},null,null,"Московская область","Зарайский муниципальный район",1]
[null,null,null,null,"Московская область","Раменский муниципальный район",4,{"$f":"MAX(ISNUMBER(SEARCH({\"район\";\"город\";\"образований\"},F23))*({3;2;1}/1%%+G23%))","v":30000.04},null,null,"Московская область","Коломенский муниципальный район",1]
[null,null,null,null,"Московская область","Рузский  муниципальный район",4,{"$f":"MAX(ISNUMBER(SEARCH({\"район\";\"город\";\"образований\"},F24))*({3;2;1}/1%%+G24%))","v":30000.04},null,null,"Московская область","Городской округ Дзержинский",6]
[null,null,null,null,"Сахалинская область","Углегорский муниципальный район",4,{"$f":"MAX(ISNUMBER(SEARCH({\"район\";\"город\";\"образований\"},F25))*({3;2;1}/1%%+G25%))","v":30000.04},null,null,"Московская область","Городской округ Железнодорожный",5]
[null,null,null,null,"Тверская область","Вышневолоцкий муниципальный район",4,{"$f":"MAX(ISNUMBER(SEARCH({\"район\";\"город\";\"образований\"},F26))*({3;2;1}/1%%+G26%))","v":30000.04},null,null,"Московская область","Городской округ Королёв",5]
[null,null,null,null,"Кировская область","Верхнекамский муниципальный район",3,{"$f":"MAX(ISNUMBER(SEARCH({\"район\";\"город\";\"образований\"},F27))*({3;2;1}/1%%+G27%))","v":30000.03},null,null,"Московская область","Городской округ Орехово-Зуево",4]
[null,null,null,null,"Московская область","Воскресенский муниципальный район",3,{"$f":"MAX(ISNUMBER(SEARCH({\"район\";\"город\";\"образований\"},F28))*({3;2;1}/1%%+G28%))","v":30000.03},null,null,"Московская область","Городской округ Электрогорск",4]
[null,null,null,null,"Московская область","Орехово-Зуевский  муниципальный район",3,{"$f":"MAX(ISNUMBER(SEARCH({\"район\";\"город\";\"образований\"},F29))*({3;2;1}/1%%+G29%))","v":30000.03},null,null,"Московская область","Городской округ Лосино-Петровский",4]
[null,null,null,null,"Московская область","Солнечногорский муниципальный район",3,{"$f":"MAX(ISNUMBER(SEARCH({\"район\";\"город\";\"образований\"},F30))*({3;2;1}/1%%+G30%))","v":30000.03},null,null,"Московская область","Городской округ Электросталь",3]
[null,null,null,null,"Новгородская область","Новгородский муниципальный район",3,{"$f":"MAX(ISNUMBER(SEARCH({\"район\";\"город\";\"образований\"},F31))*({3;2;1}/1%%+G31%))","v":30000.03},null,null,"Московская область","Городской округ Лыткарино",2]
[null,null,null,null,"Пермский край","Очерский муниципальный район",3,{"$f":"MAX(ISNUMBER(SEARCH({\"район\";\"город\";\"образований\"},F32))*({3;2;1}/1%%+G32%))","v":30000.03},null,null,"Московская область","Городской округ Жуковский",1]
[null,null,null,null,"Республика Башкортостан","Муниципальный район Благовещенский район",3,{"$f":"MAX(ISNUMBER(SEARCH({\"район\";\"город\";\"образований\"},F33))*({3;2;1}/1%%+G33%))","v":30000.03},null,null,"Московская область","Городской округ Красноармейск",1]
[null,null,null,null,"Республика Ингушетия","Муниципальный район Малгобекский",3,{"$f":"MAX(ISNUMBER(SEARCH({\"район\";\"город\";\"образований\"},F34))*({3;2;1}/1%%+G34%))","v":30000.03},null,null,"Московская область ДОБАВЛ","12 образований",28]
[null,null,null,null,"Республика Карелия","Кондопожский муниципальный район",3,{"$f":"MAX(ISNUMBER(SEARCH({\"район\";\"город\";\"образований\"},F35))*({3;2;1}/1%%+G35%))","v":30000.03}]
[null,null,null,null,"Республика Карелия","Пряжинский муниципальный район",3,{"$f":"MAX(ISNUMBER(SEARCH({\"район\";\"город\";\"образований\"},F36))*({3;2;1}/1%%+G36%))","v":30000.03}]
[null,null,null,null,"Республика Коми","Муниципальный район Корткеросский",3,{"$f":"MAX(ISNUMBER(SEARCH({\"район\";\"город\";\"образований\"},F37))*({3;2;1}/1%%+G37%))","v":30000.03}]
[null,null,null,null,"Республика Коми","Муниципальный район Печора",3,{"$f":"MAX(ISNUMBER(SEARCH({\"район\";\"город\";\"образований\"},F38))*({3;2;1}/1%%+G38%))","v":30000.03}]
[null,null,null,null,"Саратовская область","Вольский муниципальный район",3,{"$f":"MAX(ISNUMBER(SEARCH({\"район\";\"город\";\"образований\"},F39))*({3;2;1}/1%%+G39%))","v":30000.03}]
[null,null,null,null,"Тверская область","Конаковский муниципальный  район",3,{"$f":"MAX(ISNUMBER(SEARCH({\"район\";\"город\";\"образований\"},F40))*({3;2;1}/1%%+G40%))","v":30000.03}]
[null,null,null,null,"Тульская область","Узловский муниципальный район",3,{"$f":"MAX(ISNUMBER(SEARCH({\"район\";\"город\";\"образований\"},F41))*({3;2;1}/1%%+G41%))","v":30000.03}]
[null,null,null,null,"Хабаровский край","Солнечный муниципальный район",3,{"$f":"MAX(ISNUMBER(SEARCH({\"район\";\"город\";\"образований\"},F42))*({3;2;1}/1%%+G42%))","v":30000.03}]
[null,null,null,null,"Астраханская область","Муниципальный район Икрянинский",2,{"$f":"MAX(ISNUMBER(SEARCH({\"район\";\"город\";\"образований\"},F43))*({3;2;1}/1%%+G43%))","v":30000.02}]
[null,null,null,null,"Вологодская область","Кирилловский муниципальный район",2,{"$f":"MAX(ISNUMBER(SEARCH({\"район\";\"город\";\"образований\"},F44))*({3;2;1}/1%%+G44%))","v":30000.02}]
[null,null,null,null,"Забайкальский край","Муниципальный район Каларский",2,{"$f":"MAX(ISNUMBER(SEARCH({\"район\";\"город\";\"образований\"},F45))*({3;2;1}/1%%+G45%))","v":30000.02}]
[null,null,null,null,"Карачаево-Черкесская Республика","Прикубанский муниципальный район",2,{"$f":"MAX(ISNUMBER(SEARCH({\"район\";\"город\";\"образований\"},F46))*({3;2;1}/1%%+G46%))","v":30000.02}]
[null,null,null,null,"Карачаево-Черкесская Республика","Усть-Джегутинский муниципальный район",2,{"$f":"MAX(ISNUMBER(SEARCH({\"район\";\"город\";\"образований\"},F47))*({3;2;1}/1%%+G47%))","v":30000.02}]
[null,null,null,null,"Кемеровская область","Муниципальный район Беловский",2,{"$f":"MAX(ISNUMBER(SEARCH({\"район\";\"город\";\"образований\"},F48))*({3;2;1}/1%%+G48%))","v":30000.02}]
[null,null,null,null,"Кировская область","Немский муниципальный район",2,{"$f":"MAX(ISNUMBER(SEARCH({\"район\";\"город\";\"образований\"},F49))*({3;2;1}/1%%+G49%))","v":30000.02}]
[null,null,null,null,"Курганская область","Муниципальный район Петуховский",2,{"$f":"MAX(ISNUMBER(SEARCH({\"район\";\"город\";\"образований\"},F50))*({3;2;1}/1%%+G50%))","v":30000.02}]
[null,null,null,null,"Курская область","Глушковский муниципальный район",2,{"$f":"MAX(ISNUMBER(SEARCH({\"район\";\"город\";\"образований\"},F51))*({3;2;1}/1%%+G51%))","v":30000.02}]
[null,null,null,null,"Курская область","Дмитриевский муниципальный район",2,{"$f":"MAX(ISNUMBER(SEARCH({\"район\";\"город\";\"образований\"},F52))*({3;2;1}/1%%+G52%))","v":30000.02}]
[null,null,null,null,"Липецкая область","Задонский муниципальный район",2,{"$f":"MAX(ISNUMBER(SEARCH({\"район\";\"город\";\"образований\"},F53))*({3;2;1}/1%%+G53%))","v":30000.02}]
[null,null,null,null,"Московская область","Клинский муниципальный район",2,{"$f":"MAX(ISNUMBER(SEARCH({\"район\";\"город\";\"образований\"},F54))*({3;2;1}/1%%+G54%))","v":30000.02}]
[null,null,null,null,"Московская область","Павлово-Посадский муниципальный район",2,{"$f":"MAX(ISNUMBER(SEARCH({\"район\";\"город\";\"образований\"},F55))*({3;2;1}/1%%+G55%))","v":30000.02}]
[null,null,null,null,"Московская область","Чеховский муниципальный район",2,{"$f":"MAX(ISNUMBER(SEARCH({\"район\";\"город\";\"образований\"},F56))*({3;2;1}/1%%+G56%))","v":30000.02}]
[null,null,null,null,"Мурманская область","Кандалакшский муниципальный район",2,{"$f":"MAX(ISNUMBER(SEARCH({\"район\";\"город\";\"образований\"},F57))*({3;2;1}/1%%+G57%))","v":30000.02}]
[null,null,null,null,"Нижегородская область","Лукояновский  муниципальный район",2,{"$f":"MAX(ISNUMBER(SEARCH({\"район\";\"город\";\"образований\"},F58))*({3;2;1}/1%%+G58%))","v":30000.02}]
[null,null,null,null,"Нижегородская область","Починковский муниципальный район",2,{"$f":"MAX(ISNUMBER(SEARCH({\"район\";\"город\";\"образований\"},F59))*({3;2;1}/1%%+G59%))","v":30000.02}]
[null,null,null,null,"Нижегородская область","Шатковский  муниципальный район",2,{"$f":"MAX(ISNUMBER(SEARCH({\"район\";\"город\";\"образований\"},F60))*({3;2;1}/1%%+G60%))","v":30000.02}]
[null,null,null,null,"Новосибирская область","Кыштовский муниципальный район",2,{"$f":"MAX(ISNUMBER(SEARCH({\"район\";\"город\";\"образований\"},F61))*({3;2;1}/1%%+G61%))","v":30000.02}]
[null,null,null,null,"Пензенская область","Городищенский муниципальный район",2,{"$f":"MAX(ISNUMBER(SEARCH({\"район\";\"город\";\"образований\"},F62))*({3;2;1}/1%%+G62%))","v":30000.02}]
[null,null,null,null,"Республика Башкортостан","Муниципальный район Ишимбайский  район",2,{"$f":"MAX(ISNUMBER(SEARCH({\"район\";\"город\";\"образований\"},F63))*({3;2;1}/1%%+G63%))","v":30000.02}]
[null,null,null,null,"Республика Башкортостан","Муниципальный район Туймазинский район",2,{"$f":"MAX(ISNUMBER(SEARCH({\"район\";\"город\";\"образований\"},F64))*({3;2;1}/1%%+G64%))","v":30000.02}]
[null,null,null,null,"Республика Бурятия","Муниципальный район Кяхтинский",2,{"$f":"MAX(ISNUMBER(SEARCH({\"район\";\"город\";\"образований\"},F65))*({3;2;1}/1%%+G65%))","v":30000.02}]
[null,null,null,null,"Республика Карелия","Лахденпохский муниципальный район",2,{"$f":"MAX(ISNUMBER(SEARCH({\"район\";\"город\";\"образований\"},F66))*({3;2;1}/1%%+G66%))","v":30000.02}]
[null,null,null,null,"Республика Карелия","Сортавальский муниципальный район",2,{"$f":"MAX(ISNUMBER(SEARCH({\"район\";\"город\";\"образований\"},F67))*({3;2;1}/1%%+G67%))","v":30000.02}]
[null,null,null,null,"Республика Коми","Муниципальный район Сосногорск",2,{"$f":"MAX(ISNUMBER(SEARCH({\"район\";\"город\";\"образований\"},F68))*({3;2;1}/1%%+G68%))","v":30000.02}]
[null,null,null,null,"Республика Мордовия","Краснослободский муниципальный район",2,{"$f":"MAX(ISNUMBER(SEARCH({\"район\";\"город\";\"образований\"},F69))*({3;2;1}/1%%+G69%))","v":30000.02}]
[null,null,null,null,"Республика Мордовия","Рузаевский муниципальный район",2,{"$f":"MAX(ISNUMBER(SEARCH({\"район\";\"город\";\"образований\"},F70))*({3;2;1}/1%%+G70%))","v":30000.02}]
[null,null,null,null,"Республика Саха (Якутия)","Алданский муниципальный район",2,{"$f":"MAX(ISNUMBER(SEARCH({\"район\";\"город\";\"образований\"},F71))*({3;2;1}/1%%+G71%))","v":30000.02}]
[null,null,null,null,"Республика Саха (Якутия)","Нерюнгринский муниципальный район",2,{"$f":"MAX(ISNUMBER(SEARCH({\"район\";\"город\";\"образований\"},F72))*({3;2;1}/1%%+G72%))","v":30000.02}]
[null,null,null,null,"Ростовская область","Миллеровский муниципальный район",2,{"$f":"MAX(ISNUMBER(SEARCH({\"район\";\"город\";\"образований\"},F73))*({3;2;1}/1%%+G73%))","v":30000.02}]
[null,null,null,null,"Ростовская область","Шолоховский муниципальный район",2,{"$f":"MAX(ISNUMBER(SEARCH({\"район\";\"город\";\"образований\"},F74))*({3;2;1}/1%%+G74%))","v":30000.02}]
[null,null,null,null,"Тульская область","Алексинский муниципальный район",2,{"$f":"MAX(ISNUMBER(SEARCH({\"район\";\"город\";\"образований\"},F75))*({3;2;1}/1%%+G75%))","v":30000.02}]
[null,null,null,null,"Тульская область","Киреевский муниципальный район",2,{"$f":"MAX(ISNUMBER(SEARCH({\"район\";\"город\";\"образований\"},F76))*({3;2;1}/1%%+G76%))","v":30000.02}]
[null,null,null,null,"Тульская область","Тепло-Огаревский  муниципальный район",2,{"$f":"MAX(ISNUMBER(SEARCH({\"район\";\"город\";\"образований\"},F77))*({3;2;1}/1%%+G77%))","v":30000.02}]
[null,null,null,null,"Тюменская область","Тюменский муниципальный район",2,{"$f":"MAX(ISNUMBER(SEARCH({\"район\";\"город\";\"образований\"},F78))*({3;2;1}/1%%+G78%))","v":30000.02}]
[null,null,null,null,"Удмуртская Республика","Алнашский муниципальный район",2,{"$f":"MAX(ISNUMBER(SEARCH({\"район\";\"город\";\"образований\"},F79))*({3;2;1}/1%%+G79%))","v":30000.02}]
[null,null,null,null,"Хабаровский край","Советско-Гаванский муниципальный район",2,{"$f":"MAX(ISNUMBER(SEARCH({\"район\";\"город\";\"образований\"},F80))*({3;2;1}/1%%+G80%))","v":30000.02}]
[null,null,null,null,"Ханты-Мансийский автономный округ - Югра","Сургутский муниципальный район",2,{"$f":"MAX(ISNUMBER(SEARCH({\"район\";\"город\";\"образований\"},F81))*({3;2;1}/1%%+G81%))","v":30000.02}]
[null,null,null,null,"Амурская область","Зейский муниципальный район",1,{"$f":"MAX(ISNUMBER(SEARCH({\"район\";\"город\";\"образований\"},F82))*({3;2;1}/1%%+G82%))","v":30000.01}]
[null,null,null,null,"Амурская область","Серышевский муниципальный район",1,{"$f":"MAX(ISNUMBER(SEARCH({\"район\";\"город\";\"образований\"},F83))*({3;2;1}/1%%+G83%))","v":30000.01}]
[null,null,null,null,"Архангельская область","Муниципальный район Котласский",1,{"$f":"MAX(ISNUMBER(SEARCH({\"район\";\"город\";\"образований\"},F84))*({3;2;1}/1%%+G84%))","v":30000.01}]
[null,null,null,null,"Архангельская область","Муниципальный район Ленский",1,{"$f":"MAX(ISNUMBER(SEARCH({\"район\";\"город\";\"образований\"},F85))*({3;2;1}/1%%+G85%))","v":30000.01}]
[null,null,null,null,"Архангельская область","Муниципальный район Няндомский",1,{"$f":"MAX(ISNUMBER(SEARCH({\"район\";\"город\";\"образований\"},F86))*({3;2;1}/1%%+G86%))","v":30000.01}]
[null,null,null,null,"Архангельская область","Муниципальный район Устьянский",1,{"$f":"MAX(ISNUMBER(SEARCH({\"район\";\"город\";\"образований\"},F87))*({3;2;1}/1%%+G87%))","v":30000.01}]
[null,null,null,null,"Брянская область","Брасовский муниципальный район",1,{"$f":"MAX(ISNUMBER(SEARCH({\"район\";\"город\";\"образований\"},F88))*({3;2;1}/1%%+G88%))","v":30000.01}]
[null,null,null,null,"Брянская область","Погарский муниципальный район",1,{"$f":"MAX(ISNUMBER(SEARCH({\"район\";\"город\";\"образований\"},F89))*({3;2;1}/1%%+G89%))","v":30000.01}]
[null,null,null,null,"Брянская область","Трубчевский муниципальный район",1,{"$f":"MAX(ISNUMBER(SEARCH({\"район\";\"город\";\"образований\"},F90))*({3;2;1}/1%%+G90%))","v":30000.01}]
[null,null,null,null,"Вологодская область","Белозерский муниципальный  район",1,{"$f":"MAX(ISNUMBER(SEARCH({\"район\";\"город\";\"образований\"},F91))*({3;2;1}/1%%+G91%))","v":30000.01}]
[null,null,null,null,"Вологодская область","Грязовецкий муниципальный район",1,{"$f":"MAX(ISNUMBER(SEARCH({\"район\";\"город\";\"образований\"},F92))*({3;2;1}/1%%+G92%))","v":30000.01}]
[null,null,null,null,"Забайкальский край","Муниципальный район Шилкинский",1,{"$f":"MAX(ISNUMBER(SEARCH({\"район\";\"город\";\"образований\"},F93))*({3;2;1}/1%%+G93%))","v":30000.01}]
[null,null,null,null,"Иркутская область","Казачинско-Ленский муниципальный район",1,{"$f":"MAX(ISNUMBER(SEARCH({\"район\";\"город\";\"образований\"},F94))*({3;2;1}/1%%+G94%))","v":30000.01}]
[null,null,null,null,"Иркутская область","Нижнеилимский муниципальный район",1,{"$f":"MAX(ISNUMBER(SEARCH({\"район\";\"город\";\"образований\"},F95))*({3;2;1}/1%%+G95%))","v":30000.01}]
[null,null,null,null,"Иркутская область","Черемховское районное муниципальное образование",1,{"$f":"MAX(ISNUMBER(SEARCH({\"район\";\"город\";\"образований\"},F96))*({3;2;1}/1%%+G96%))","v":30000.01}]
[null,null,null,null,"Карачаево-Черкесская Республика","Абазинский муниципальный район",1,{"$f":"MAX(ISNUMBER(SEARCH({\"район\";\"город\";\"образований\"},F97))*({3;2;1}/1%%+G97%))","v":30000.01}]
[null,null,null,null,"Карачаево-Черкесская Республика","Урупский муниципальный район",1,{"$f":"MAX(ISNUMBER(SEARCH({\"район\";\"город\";\"образований\"},F98))*({3;2;1}/1%%+G98%))","v":30000.01}]
[null,null,null,null,"Кемеровская область","Муниципальный район Мариинский",1,{"$f":"MAX(ISNUMBER(SEARCH({\"район\";\"город\";\"образований\"},F99))*({3;2;1}/1%%+G99%))","v":30000.01}]
[null,null,null,null,"Кировская область","Омутнинский муниципальный район",1,{"$f":"MAX(ISNUMBER(SEARCH({\"район\";\"город\";\"образований\"},F100))*({3;2;1}/1%%+G100%))","v":30000.01}]
[null,null,null,null,"Кировская область","Слободской муниципальный район",1,{"$f":"MAX(ISNUMBER(SEARCH({\"район\";\"город\";\"образований\"},F101))*({3;2;1}/1%%+G101%))","v":30000.01}]
[null,null,null,null,"Костромская область","Межевской муниципальный район",1,{"$f":"MAX(ISNUMBER(SEARCH({\"район\";\"город\";\"образований\"},F102))*({3;2;1}/1%%+G102%))","v":30000.01}]
[null,null,null,null,"Костромская область","Муниципальный район город Нерехта и Нерехтский район",1,{"$f":"MAX(ISNUMBER(SEARCH({\"район\";\"город\";\"образований\"},F103))*({3;2;1}/1%%+G103%))","v":30000.01}]
[null,null,null,null,"Краснодарский край","Абинский муниципальный район",1,{"$f":"MAX(ISNUMBER(SEARCH({\"район\";\"город\";\"образований\"},F104))*({3;2;1}/1%%+G104%))","v":30000.01}]
[null,null,null,null,"Краснодарский край","Усть-Лабинский муниципальный район",1,{"$f":"MAX(ISNUMBER(SEARCH({\"район\";\"город\";\"образований\"},F105))*({3;2;1}/1%%+G105%))","v":30000.01}]
[null,null,null,null,"Курганская область","Муниципальный район Шадринский",1,{"$f":"MAX(ISNUMBER(SEARCH({\"район\";\"город\";\"образований\"},F106))*({3;2;1}/1%%+G106%))","v":30000.01}]
[null,null,null,null,"Курская область","Касторенский муниципальный район",1,{"$f":"MAX(ISNUMBER(SEARCH({\"район\";\"город\";\"образований\"},F107))*({3;2;1}/1%%+G107%))","v":30000.01}]
[null,null,null,null,"Липецкая область","Данковский муниципальный район",1,{"$f":"MAX(ISNUMBER(SEARCH({\"район\";\"город\";\"образований\"},F108))*({3;2;1}/1%%+G108%))","v":30000.01}]
[null,null,null,null,"Липецкая область","Елецкий муниципальный район",1,{"$f":"MAX(ISNUMBER(SEARCH({\"район\";\"город\";\"образований\"},F109))*({3;2;1}/1%%+G109%))","v":30000.01}]
[null,null,null,null,"Липецкая область","Краснинский муниципальный район",1,{"$f":"MAX(ISNUMBER(SEARCH({\"район\";\"город\";\"образований\"},F110))*({3;2;1}/1%%+G110%))","v":30000.01}]
[null,null,null,null,"Липецкая область","Липецкий муниципальный район",1,{"$f":"MAX(ISNUMBER(SEARCH({\"район\";\"город\";\"образований\"},F111))*({3;2;1}/1%%+G111%))","v":30000.01}]
[null,null,null,null,"Липецкая область","Хлевенский муниципальный район",1,{"$f":"MAX(ISNUMBER(SEARCH({\"район\";\"город\";\"образований\"},F112))*({3;2;1}/1%%+G112%))","v":30000.01}]
[null,null,null,null,"Московская область","Зарайский муниципальный район",1,{"$f":"MAX(ISNUMBER(SEARCH({\"район\";\"город\";\"образований\"},F113))*({3;2;1}/1%%+G113%))","v":30000.01}]
[null,null,null,null,"Московская область","Коломенский муниципальный район",1,{"$f":"MAX(ISNUMBER(SEARCH({\"район\";\"город\";\"образований\"},F114))*({3;2;1}/1%%+G114%))","v":30000.01}]
[null,null,null,null,"Мурманская область","Кольский муниципальный район",1,{"$f":"MAX(ISNUMBER(SEARCH({\"район\";\"город\";\"образований\"},F115))*({3;2;1}/1%%+G115%))","v":30000.01}]
[null,null,null,null,"Нижегородская область","Ардатовский  муниципальный район",1,{"$f":"MAX(ISNUMBER(SEARCH({\"район\";\"город\";\"образований\"},F116))*({3;2;1}/1%%+G116%))","v":30000.01}]
[null,null,null,null,"Нижегородская область","Балахнинский муниципальный район",1,{"$f":"MAX(ISNUMBER(SEARCH({\"район\";\"город\";\"образований\"},F117))*({3;2;1}/1%%+G117%))","v":30000.01}]
[null,null,null,null,"Нижегородская область","Вадский муниципальный район",1,{"$f":"MAX(ISNUMBER(SEARCH({\"район\";\"город\";\"образований\"},F118))*({3;2;1}/1%%+G118%))","v":30000.01}]
[null,null,null,null,"Нижегородская область","Кулебакский  муниципальный район",1,{"$f":"MAX(ISNUMBER(SEARCH({\"район\";\"город\";\"образований\"},F119))*({3;2;1}/1%%+G119%))","v":30000.01}]
[null,null,null,null,"Нижегородская область","Тонкинский  муниципальный район",1,{"$f":"MAX(ISNUMBER(SEARCH({\"район\";\"город\";\"образований\"},F120))*({3;2;1}/1%%+G120%))","v":30000.01}]
[null,null,null,null,"Нижегородская область","Тоншаевский  муниципальный район",1,{"$f":"MAX(ISNUMBER(SEARCH({\"район\";\"город\";\"образований\"},F121))*({3;2;1}/1%%+G121%))","v":30000.01}]
[null,null,null,null,"Новгородская область","Маловишерский муниципальный район",1,{"$f":"MAX(ISNUMBER(SEARCH({\"район\";\"город\";\"образований\"},F122))*({3;2;1}/1%%+G122%))","v":30000.01}]
[null,null,null,null,"Новгородская область","Мошенской муниципальный район",1,{"$f":"MAX(ISNUMBER(SEARCH({\"район\";\"город\";\"образований\"},F123))*({3;2;1}/1%%+G123%))","v":30000.01}]
[null,null,null,null,"Новгородская область","Холмский муниципальный район",1,{"$f":"MAX(ISNUMBER(SEARCH({\"район\";\"город\";\"образований\"},F124))*({3;2;1}/1%%+G124%))","v":30000.01}]
[null,null,null,null,"Новосибирская область","Венгеровский муниципальный район",1,{"$f":"MAX(ISNUMBER(SEARCH({\"район\";\"город\";\"образований\"},F125))*({3;2;1}/1%%+G125%))","v":30000.01}]
[null,null,null,null,"Новосибирская область","Каргатский муниципальный район",1,{"$f":"MAX(ISNUMBER(SEARCH({\"район\";\"город\";\"образований\"},F126))*({3;2;1}/1%%+G126%))","v":30000.01}]
[null,null,null,null,"Новосибирская область","Тогучинский муниципальный район",1,{"$f":"MAX(ISNUMBER(SEARCH({\"район\";\"город\";\"образований\"},F127))*({3;2;1}/1%%+G127%))","v":30000.01}]
[null,null,null,null,"Новосибирская область","Черепановский муниципальный район",1,{"$f":"MAX(ISNUMBER(SEARCH({\"район\";\"город\";\"образований\"},F128))*({3;2;1}/1%%+G128%))","v":30000.01}]
[null,null,null,null,"Орловская область","Краснозоренский муниципальный район",1,{"$f":"MAX(ISNUMBER(SEARCH({\"район\";\"город\";\"образований\"},F129))*({3;2;1}/1%%+G129%))","v":30000.01}]
[null,null,null,null,"Пензенская область","Нижнеломовский муниципальный район",1,{"$f":"MAX(ISNUMBER(SEARCH({\"район\";\"город\";\"образований\"},F130))*({3;2;1}/1%%+G130%))","v":30000.01}]
[null,null,null,null,"Пермский край","Березовский муниципальный район",1,{"$f":"MAX(ISNUMBER(SEARCH({\"район\";\"город\";\"образований\"},F131))*({3;2;1}/1%%+G131%))","v":30000.01}]
[null,null,null,null,"Пермский край","Верещагинский муниципальный район",1,{"$f":"MAX(ISNUMBER(SEARCH({\"район\";\"город\";\"образований\"},F132))*({3;2;1}/1%%+G132%))","v":30000.01}]
[null,null,null,null,"Пермский край","Добрянский муниципальный район",1,{"$f":"MAX(ISNUMBER(SEARCH({\"район\";\"город\";\"образований\"},F133))*({3;2;1}/1%%+G133%))","v":30000.01}]
[null,null,null,null,"Пермский край","Чусовской муниципальный район",1,{"$f":"MAX(ISNUMBER(SEARCH({\"район\";\"город\";\"образований\"},F134))*({3;2;1}/1%%+G134%))","v":30000.01}]
[null,null,null,null,"Республика Башкортостан","Муниципальный район Альшеевский район",1,{"$f":"MAX(ISNUMBER(SEARCH({\"район\";\"город\";\"образований\"},F135))*({3;2;1}/1%%+G135%))","v":30000.01}]
[null,null,null,null,"Республика Башкортостан","Муниципальный район Ермекеевский район",1,{"$f":"MAX(ISNUMBER(SEARCH({\"район\";\"город\";\"образований\"},F136))*({3;2;1}/1%%+G136%))","v":30000.01}]
[null,null,null,null,"Республика Башкортостан","Муниципальный район Кармаскалинский район",1,{"$f":"MAX(ISNUMBER(SEARCH({\"район\";\"город\";\"образований\"},F137))*({3;2;1}/1%%+G137%))","v":30000.01}]
[null,null,null,null,"Республика Башкортостан","Муниципальный район Федоровский  район",1,{"$f":"MAX(ISNUMBER(SEARCH({\"район\";\"город\";\"образований\"},F138))*({3;2;1}/1%%+G138%))","v":30000.01}]
[null,null,null,null,"Республика Бурятия","Муниципальный район Бичурский",1,{"$f":"MAX(ISNUMBER(SEARCH({\"район\";\"город\";\"образований\"},F139))*({3;2;1}/1%%+G139%))","v":30000.01}]
[null,null,null,null,"Республика Карелия","Кемский муниципальный район",1,{"$f":"MAX(ISNUMBER(SEARCH({\"район\";\"город\";\"образований\"},F140))*({3;2;1}/1%%+G140%))","v":30000.01}]
[null,null,null,null,"Республика Карелия","Питкярантский муниципальный район",1,{"$f":"MAX(ISNUMBER(SEARCH({\"район\";\"город\";\"образований\"},F141))*({3;2;1}/1%%+G141%))","v":30000.01}]
[null,null,null,null,"Республика Карелия","Пудожский муниципальный район",1,{"$f":"MAX(ISNUMBER(SEARCH({\"район\";\"город\";\"образований\"},F142))*({3;2;1}/1%%+G142%))","v":30000.01}]
[null,null,null,null,"Республика Коми","Муниципальный район Прилузский",1,{"$f":"MAX(ISNUMBER(SEARCH({\"район\";\"город\";\"образований\"},F143))*({3;2;1}/1%%+G143%))","v":30000.01}]
[null,null,null,null,"Республика Мордовия","Инсарский муниципальный район",1,{"$f":"MAX(ISNUMBER(SEARCH({\"район\";\"город\";\"образований\"},F144))*({3;2;1}/1%%+G144%))","v":30000.01}]
[null,null,null,null,"Республика Мордовия","Ковылкинский муниципальный район",1,{"$f":"MAX(ISNUMBER(SEARCH({\"район\";\"город\";\"образований\"},F145))*({3;2;1}/1%%+G145%))","v":30000.01}]
[null,null,null,null,"Республика Мордовия","Кочкуровский муниципальный район",1,{"$f":"MAX(ISNUMBER(SEARCH({\"район\";\"город\";\"образований\"},F146))*({3;2;1}/1%%+G146%))","v":30000.01}]
[null,null,null,null,"Республика Мордовия","Лямбирский муниципальный район",1,{"$f":"MAX(ISNUMBER(SEARCH({\"район\";\"город\";\"образований\"},F147))*({3;2;1}/1%%+G147%))","v":30000.01}]
[null,null,null,null,"Республика Мордовия","Старошайговский муниципальный район",1,{"$f":"MAX(ISNUMBER(SEARCH({\"район\";\"город\";\"образований\"},F148))*({3;2;1}/1%%+G148%))","v":30000.01}]
[null,null,null,null,"Республика Мордовия","Темниковский муниципальный район",1,{"$f":"MAX(ISNUMBER(SEARCH({\"район\";\"город\";\"образований\"},F149))*({3;2;1}/1%%+G149%))","v":30000.01}]
[null,null,null,null,"Республика Мордовия","Чамзинский муниципальный район",1,{"$f":"MAX(ISNUMBER(SEARCH({\"район\";\"город\";\"образований\"},F150))*({3;2;1}/1%%+G150%))","v":30000.01}]
[null,null,null,null,"Республика Саха (Якутия)","Нижнеколымский муниципальный район",1,{"$f":"MAX(ISNUMBER(SEARCH({\"район\";\"город\";\"образований\"},F151))*({3;2;1}/1%%+G151%))","v":30000.01}]
[null,null,null,null,"Республика Саха (Якутия)","Оймяконский муниципальный район",1,{"$f":"MAX(ISNUMBER(SEARCH({\"район\";\"город\";\"образований\"},F152))*({3;2;1}/1%%+G152%))","v":30000.01}]
[null,null,null,null,"Республика Саха (Якутия)","Усть-Майский муниципальный район",1,{"$f":"MAX(ISNUMBER(SEARCH({\"район\";\"город\";\"образований\"},F153))*({3;2;1}/1%%+G153%))","v":30000.01}]
[null,null,null,null,"Республика Саха (Якутия)","Хангаласский муниципальный район",1,{"$f":"MAX(ISNUMBER(SEARCH({\"район\";\"город\";\"образований\"},F154))*({3;2;1}/1%%+G154%))","v":30000.01}]
[null,null,null,null,"Республика Северная Осетия - Алания","Моздокский муниципальный район",1,{"$f":"MAX(ISNUMBER(SEARCH({\"район\";\"город\";\"образований\"},F155))*({3;2;1}/1%%+G155%))","v":30000.01}]
[null,null,null,null,"Ростовская область","Багаевский муниципальный район",1,{"$f":"MAX(ISNUMBER(SEARCH({\"район\";\"город\";\"образований\"},F156))*({3;2;1}/1%%+G156%))","v":30000.01}]
[null,null,null,null,"Ростовская область","Волгодонской муниципальный район",1,{"$f":"MAX(ISNUMBER(SEARCH({\"район\";\"город\";\"образований\"},F157))*({3;2;1}/1%%+G157%))","v":30000.01}]
[null,null,null,null,"Ростовская область","Сальский муниципальный район",1,{"$f":"MAX(ISNUMBER(SEARCH({\"район\";\"город\";\"образований\"},F158))*({3;2;1}/1%%+G158%))","v":30000.01}]
[null,null,null,null,"Ростовская область","Целинский муниципальный район",1,{"$f":"MAX(ISNUMBER(SEARCH({\"район\";\"город\";\"образований\"},F159))*({3;2;1}/1%%+G159%))","v":30000.01}]
[null,null,null,null,"Самарская область","Муниципальный район Большеглушицкий",1,{"$f":"MAX(ISNUMBER(SEARCH({\"район\";\"город\";\"образований\"},F160))*({3;2;1}/1%%+G160%))","v":30000.01}]
[null,null,null,null,"Самарская область","Муниципальный район Исаклинский",1,{"$f":"MAX(ISNUMBER(SEARCH({\"район\";\"город\";\"образований\"},F161))*({3;2;1}/1%%+G161%))","v":30000.01}]
[null,null,null,null,"Самарская область","Муниципальный район Кинельский",1,{"$f":"MAX(ISNUMBER(SEARCH({\"район\";\"город\";\"образований\"},F162))*({3;2;1}/1%%+G162%))","v":30000.01}]
[null,null,null,null,"Самарская область","Муниципальный район Кинель-Черкасский",1,{"$f":"MAX(ISNUMBER(SEARCH({\"район\";\"город\";\"образований\"},F163))*({3;2;1}/1%%+G163%))","v":30000.01}]
[null,null,null,null,"Саратовская область","Краснокутский муниципальный район",1,{"$f":"MAX(ISNUMBER(SEARCH({\"район\";\"город\";\"образований\"},F164))*({3;2;1}/1%%+G164%))","v":30000.01}]
[null,null,null,null,"Саратовская область","Федоровский муниципальный район",1,{"$f":"MAX(ISNUMBER(SEARCH({\"район\";\"город\";\"образований\"},F165))*({3;2;1}/1%%+G165%))","v":30000.01}]
[null,null,null,null,"Тверская область","Весьегонский  муниципальный район",1,{"$f":"MAX(ISNUMBER(SEARCH({\"район\";\"город\";\"образований\"},F166))*({3;2;1}/1%%+G166%))","v":30000.01}]
[null,null,null,null,"Тверская область","Калязинский  муниципальный район",1,{"$f":"MAX(ISNUMBER(SEARCH({\"район\";\"город\";\"образований\"},F167))*({3;2;1}/1%%+G167%))","v":30000.01}]
[null,null,null,null,"Тверская область","Кимрский муниципальный район",1,{"$f":"MAX(ISNUMBER(SEARCH({\"район\";\"город\";\"образований\"},F168))*({3;2;1}/1%%+G168%))","v":30000.01}]
[null,null,null,null,"Тверская область","Нелидовский муниципальный район",1,{"$f":"MAX(ISNUMBER(SEARCH({\"район\";\"город\";\"образований\"},F169))*({3;2;1}/1%%+G169%))","v":30000.01}]
[null,null,null,null,"Томская область","Муниципальный район Каргасокский",1,{"$f":"MAX(ISNUMBER(SEARCH({\"район\";\"город\";\"образований\"},F170))*({3;2;1}/1%%+G170%))","v":30000.01}]
[null,null,null,null,"Тульская область","Воловский муниципальный район",1,{"$f":"MAX(ISNUMBER(SEARCH({\"район\";\"город\";\"образований\"},F171))*({3;2;1}/1%%+G171%))","v":30000.01}]
[null,null,null,null,"Тульская область","Заокский муниципальный район",1,{"$f":"MAX(ISNUMBER(SEARCH({\"район\";\"город\";\"образований\"},F172))*({3;2;1}/1%%+G172%))","v":30000.01}]
[null,null,null,null,"Тульская область","Кимовский муниципальный район",1,{"$f":"MAX(ISNUMBER(SEARCH({\"район\";\"город\";\"образований\"},F173))*({3;2;1}/1%%+G173%))","v":30000.01}]
[null,null,null,null,"Тюменская область","Казанский муниципальный район",1,{"$f":"MAX(ISNUMBER(SEARCH({\"район\";\"город\";\"образований\"},F174))*({3;2;1}/1%%+G174%))","v":30000.01}]
[null,null,null,null,"Тюменская область","Уватский муниципальный район",1,{"$f":"MAX(ISNUMBER(SEARCH({\"район\";\"город\";\"образований\"},F175))*({3;2;1}/1%%+G175%))","v":30000.01}]
[null,null,null,null,"Тюменская область","Ярковский муниципальный район",1,{"$f":"MAX(ISNUMBER(SEARCH({\"район\";\"город\";\"образований\"},F176))*({3;2;1}/1%%+G176%))","v":30000.01}]
[null,null,null,null,"Удмуртская Республика","Малопургинский муниципальный район",1,{"$f":"MAX(ISNUMBER(SEARCH({\"район\";\"город\";\"образований\"},F177))*({3;2;1}/1%%+G177%))","v":30000.01}]
[null,null,null,null,"Ханты-Мансийский автономный округ - Югра","Кондинский муниципальный район",1,{"$f":"MAX(ISNUMBER(SEARCH({\"район\";\"город\";\"образований\"},F178))*({3;2;1}/1%%+G178%))","v":30000.01}]
[null,null,null,null,"Ямало-Ненецкий автономный округ","Надымский муниципальный район",1,{"$f":"MAX(ISNUMBER(SEARCH({\"район\";\"город\";\"образований\"},F179))*({3;2;1}/1%%+G179%))","v":30000.01}]
[null,null,null,null,"Ямало-Ненецкий автономный округ","Тазовский муниципальный район",1,{"$f":"MAX(ISNUMBER(SEARCH({\"район\";\"город\";\"образований\"},F180))*({3;2;1}/1%%+G180%))","v":30000.01}]
[null,null,null,null,"Новосибирская область","Городской округ - город Новосибирск",54,{"$f":"MAX(ISNUMBER(SEARCH({\"район\";\"город\";\"образований\"},F181))*({3;2;1}/1%%+G181%))","v":20000.54}]
[null,null,null,null,"Республика Башкортостан","Городской округ -город Уфа",52,{"$f":"MAX(ISNUMBER(SEARCH({\"район\";\"город\";\"образований\"},F182))*({3;2;1}/1%%+G182%))","v":20000.52}]
[null,null,null,null,"Самарская область","Городской округ Самара",49,{"$f":"MAX(ISNUMBER(SEARCH({\"район\";\"город\";\"образований\"},F183))*({3;2;1}/1%%+G183%))","v":20000.490000000002}]
[null,null,null,null,"Пензенская область","Городской округ город Пенза",31,{"$f":"MAX(ISNUMBER(SEARCH({\"район\";\"город\";\"образований\"},F184))*({3;2;1}/1%%+G184%))","v":20000.310000000001}]
[null,null,null,null,"Хабаровский край","Городской округ Город Хабаровск",28,{"$f":"MAX(ISNUMBER(SEARCH({\"район\";\"город\";\"образований\"},F185))*({3;2;1}/1%%+G185%))","v":20000.28}]
[null,null,null,null,"Краснодарский край","Городской округ - город-курорт Сочи",27,{"$f":"MAX(ISNUMBER(SEARCH({\"район\";\"город\";\"образований\"},F186))*({3;2;1}/1%%+G186%))","v":20000.27}]
[null,null,null,null,"Иркутская область","Муниципальное образование Город Иркутск",26,{"$f":"MAX(ISNUMBER(SEARCH({\"район\";\"город\";\"образований\"},F187))*({3;2;1}/1%%+G187%))","v":20000.259999999998}]
[null,null,null,null,"Томская область","Городской округ  Город Томск",19,{"$f":"MAX(ISNUMBER(SEARCH({\"район\";\"город\";\"образований\"},F188))*({3;2;1}/1%%+G188%))","v":20000.189999999999}]
[null,null,null,null,"Сахалинская область","Городской округ Город Южно-Сахалинск",18,{"$f":"MAX(ISNUMBER(SEARCH({\"район\";\"город\";\"образований\"},F189))*({3;2;1}/1%%+G189%))","v":20000.18}]
[null,null,null,null,"Тюменская область","Городской округ город Тюмень",18,{"$f":"MAX(ISNUMBER(SEARCH({\"район\";\"город\";\"образований\"},F190))*({3;2;1}/1%%+G190%))","v":20000.18}]
[null,null,null,null,"Ханты-Мансийский автономный округ - Югра","Городской округ город Нижневартовск",17,{"$f":"MAX(ISNUMBER(SEARCH({\"район\";\"город\";\"образований\"},F191))*({3;2;1}/1%%+G191%))","v":20000.169999999998}]
[null,null,null,null,"Кемеровская область","Городской округ - город Прокопьевск",16,{"$f":"MAX(ISNUMBER(SEARCH({\"район\";\"город\";\"образований\"},F192))*({3;2;1}/1%%+G192%))","v":20000.16}]
[null,null,null,null,"Ямало-Ненецкий автономный округ","Городской округ город Салехард",12,{"$f":"MAX(ISNUMBER(SEARCH({\"район\";\"город\";\"образований\"},F193))*({3;2;1}/1%%+G193%))","v":20000.12}]
[null,null,null,null,"Камчатский край","Петропавловск-Камчатский городской округ",11,{"$f":"MAX(ISNUMBER(SEARCH({\"район\";\"город\";\"образований\"},F194))*({3;2;1}/1%%+G194%))","v":20000.11}]
[null,null,null,null,"Курганская область","Городской округ город Курган",11,{"$f":"MAX(ISNUMBER(SEARCH({\"район\";\"город\";\"образований\"},F195))*({3;2;1}/1%%+G195%))","v":20000.11}]
[null,null,null,null,"Республика Северная Осетия - Алания","Городской округ город Владикавказ",10,{"$f":"MAX(ISNUMBER(SEARCH({\"район\";\"город\";\"образований\"},F196))*({3;2;1}/1%%+G196%))","v":20000.099999999999}]
[null,null,null,null,"Мурманская область","Городской округ город Мурманск",9,{"$f":"MAX(ISNUMBER(SEARCH({\"район\";\"город\";\"образований\"},F197))*({3;2;1}/1%%+G197%))","v":20000.09}]
[null,null,null,null,"Орловская область","Городской округ - город Орёл",9,{"$f":"MAX(ISNUMBER(SEARCH({\"район\";\"город\";\"образований\"},F198))*({3;2;1}/1%%+G198%))","v":20000.09}]
[null,null,null,null,"Еврейская автономная область","Городской округ Город Биробиджан",8,{"$f":"MAX(ISNUMBER(SEARCH({\"район\";\"город\";\"образований\"},F199))*({3;2;1}/1%%+G199%))","v":20000.080000000002}]
[null,null,null,null,"Костромская область","Городской округ город Кострома",8,{"$f":"MAX(ISNUMBER(SEARCH({\"район\";\"город\";\"образований\"},F200))*({3;2;1}/1%%+G200%))","v":20000.080000000002}]
[null,null,null,null,"Республика Бурятия","Городской округ-  город Северобайкальск",7,{"$f":"MAX(ISNUMBER(SEARCH({\"район\";\"город\";\"образований\"},F201))*({3;2;1}/1%%+G201%))","v":20000.07}]
[null,null,null,null,"Архангельская область","Городской округ - город Северодвинск",6,{"$f":"MAX(ISNUMBER(SEARCH({\"район\";\"город\";\"образований\"},F202))*({3;2;1}/1%%+G202%))","v":20000.060000000001}]
[null,null,null,null,"Московская область","Городской округ Дзержинский",6,{"$f":"MAX(ISNUMBER(SEARCH({\"район\";\"город\";\"образований\"},F203))*({3;2;1}/1%%+G203%))","v":20000.060000000001}]
[null,null,null,null,"Московская область","Городской округ Железнодорожный",5,{"$f":"MAX(ISNUMBER(SEARCH({\"район\";\"город\";\"образований\"},F204))*({3;2;1}/1%%+G204%))","v":20000.05}]
[null,null,null,null,"Московская область","Городской округ Королёв",5,{"$f":"MAX(ISNUMBER(SEARCH({\"район\";\"город\";\"образований\"},F205))*({3;2;1}/1%%+G205%))","v":20000.05}]
[null,null,null,null,"Ростовская область","Городской округ Город Новочеркасск",5,{"$f":"MAX(ISNUMBER(SEARCH({\"район\";\"город\";\"образований\"},F206))*({3;2;1}/1%%+G206%))","v":20000.05}]
[null,null,null,null,"Ростовская область","Городской округ Город Таганрог",5,{"$f":"MAX(ISNUMBER(SEARCH({\"район\";\"город\";\"образований\"},F207))*({3;2;1}/1%%+G207%))","v":20000.05}]
[null,null,null,null,"Удмуртская Республика","Городской округ - город Глазов",5,{"$f":"MAX(ISNUMBER(SEARCH({\"район\";\"город\";\"образований\"},F208))*({3;2;1}/1%%+G208%))","v":20000.05}]
[null,null,null,null,"Кемеровская область","Городской округ - город Киселевск",4,{"$f":"MAX(ISNUMBER(SEARCH({\"район\";\"город\";\"образований\"},F209))*({3;2;1}/1%%+G209%))","v":20000.04}]
[null,null,null,null,"Московская область","Городской округ Лосино-Петровский",4,{"$f":"MAX(ISNUMBER(SEARCH({\"район\";\"город\";\"образований\"},F210))*({3;2;1}/1%%+G210%))","v":20000.04}]
[null,null,null,null,"Московская область","Городской округ Орехово-Зуево",4,{"$f":"MAX(ISNUMBER(SEARCH({\"район\";\"город\";\"образований\"},F211))*({3;2;1}/1%%+G211%))","v":20000.04}]
[null,null,null,null,"Московская область","Городской округ Электрогорск",4,{"$f":"MAX(ISNUMBER(SEARCH({\"район\";\"город\";\"образований\"},F212))*({3;2;1}/1%%+G212%))","v":20000.04}]
[null,null,null,null,"Ненецкий автономный округ","Городской округ - город Нарьян -Мар",4,{"$f":"MAX(ISNUMBER(SEARCH({\"район\";\"город\";\"образований\"},F213))*({3;2;1}/1%%+G213%))","v":20000.04}]
[null,null,null,null,"Нижегородская область","Городской округ - город Выкса",4,{"$f":"MAX(ISNUMBER(SEARCH({\"район\";\"город\";\"образований\"},F214))*({3;2;1}/1%%+G214%))","v":20000.04}]
[null,null,null,null,"Ростовская область","Городской округ Город Шахты",4,{"$f":"MAX(ISNUMBER(SEARCH({\"район\";\"город\";\"образований\"},F215))*({3;2;1}/1%%+G215%))","v":20000.04}]
[null,null,null,null,"Сахалинская область","Городской округСмирныховский",4,{"$f":"MAX(ISNUMBER(SEARCH({\"район\";\"город\";\"образований\"},F216))*({3;2;1}/1%%+G216%))","v":20000.04}]
[null,null,null,null,"Томская область","Городской округ Город Северск",4,{"$f":"MAX(ISNUMBER(SEARCH({\"район\";\"город\";\"образований\"},F217))*({3;2;1}/1%%+G217%))","v":20000.04}]
[null,null,null,null,"Тюменская область","Городской округ город Ишим",4,{"$f":"MAX(ISNUMBER(SEARCH({\"район\";\"город\";\"образований\"},F218))*({3;2;1}/1%%+G218%))","v":20000.04}]
[null,null,null,null,"Ханты-Мансийский автономный округ - Югра","Городской округ город Радужный",4,{"$f":"MAX(ISNUMBER(SEARCH({\"район\";\"город\";\"образований\"},F219))*({3;2;1}/1%%+G219%))","v":20000.04}]
[null,null,null,null,"Амурская область","Городской округ - город Белогорск",3,{"$f":"MAX(ISNUMBER(SEARCH({\"район\";\"город\";\"образований\"},F220))*({3;2;1}/1%%+G220%))","v":20000.03}]
[null,null,null,null,"Иркутская область","Муниципальное образование города Братска",3,{"$f":"MAX(ISNUMBER(SEARCH({\"район\";\"город\";\"образований\"},F221))*({3;2;1}/1%%+G221%))","v":20000.03}]
[null,null,null,null,"Кемеровская область","Городской округ - город Анжеро-Судженск",3,{"$f":"MAX(ISNUMBER(SEARCH({\"район\";\"город\";\"образований\"},F222))*({3;2;1}/1%%+G222%))","v":20000.03}]
[null,null,null,null,"Кировская область","Городской округ Город Кирово-Чепецк",3,{"$f":"MAX(ISNUMBER(SEARCH({\"район\";\"город\";\"образований\"},F223))*({3;2;1}/1%%+G223%))","v":20000.03}]
[null,null,null,null,"Краснодарский край","Городской округ - город Армавир",3,{"$f":"MAX(ISNUMBER(SEARCH({\"район\";\"город\";\"образований\"},F224))*({3;2;1}/1%%+G224%))","v":20000.03}]
[null,null,null,null,"Московская область","Городской округ Электросталь",3,{"$f":"MAX(ISNUMBER(SEARCH({\"район\";\"город\";\"образований\"},F225))*({3;2;1}/1%%+G225%))","v":20000.03}]
[null,null,null,null,"Пермский край","Березниковский городской округ",3,{"$f":"MAX(ISNUMBER(SEARCH({\"район\";\"город\";\"образований\"},F226))*({3;2;1}/1%%+G226%))","v":20000.03}]
[null,null,null,null,"Республика Коми","Городской округ Ухта",3,{"$f":"MAX(ISNUMBER(SEARCH({\"район\";\"город\";\"образований\"},F227))*({3;2;1}/1%%+G227%))","v":20000.03}]
[null,null,null,null,"Ростовская область","Городской округ Город Батайск",3,{"$f":"MAX(ISNUMBER(SEARCH({\"район\";\"город\";\"образований\"},F228))*({3;2;1}/1%%+G228%))","v":20000.03}]
[null,null,null,null,"Ростовская область","Городской округ Город Донецк",3,{"$f":"MAX(ISNUMBER(SEARCH({\"район\";\"город\";\"образований\"},F229))*({3;2;1}/1%%+G229%))","v":20000.03}]
[null,null,null,null,"Самарская область","Городской округ Сызрань",3,{"$f":"MAX(ISNUMBER(SEARCH({\"район\";\"город\";\"образований\"},F230))*({3;2;1}/1%%+G230%))","v":20000.03}]
[null,null,null,null,"Сахалинская область","Корсаковский городской округ",3,{"$f":"MAX(ISNUMBER(SEARCH({\"район\";\"город\";\"образований\"},F231))*({3;2;1}/1%%+G231%))","v":20000.03}]
[null,null,null,null,"Тверская область","Городской округ - город Торжок",3,{"$f":"MAX(ISNUMBER(SEARCH({\"район\";\"город\";\"образований\"},F232))*({3;2;1}/1%%+G232%))","v":20000.03}]
[null,null,null,null,"Ямало-Ненецкий автономный округ","Городской округ город Новый Уренгой",3,{"$f":"MAX(ISNUMBER(SEARCH({\"район\";\"город\";\"образований\"},F233))*({3;2;1}/1%%+G233%))","v":20000.03}]
[null,null,null,null,"Амурская область","Городской округ - город Свободный",2,{"$f":"MAX(ISNUMBER(SEARCH({\"район\";\"город\";\"образований\"},F234))*({3;2;1}/1%%+G234%))","v":20000.02}]
[null,null,null,null,"Амурская область","Городской округ - город Тында",2,{"$f":"MAX(ISNUMBER(SEARCH({\"район\";\"город\";\"образований\"},F235))*({3;2;1}/1%%+G235%))","v":20000.02}]
[null,null,null,null,"Забайкальский край","Городской округ - город Петровск-Забайкальский",2,{"$f":"MAX(ISNUMBER(SEARCH({\"район\";\"город\";\"образований\"},F236))*({3;2;1}/1%%+G236%))","v":20000.02}]
[null,null,null,null,"Иркутская область","Муниципальное образование Город Тулун",2,{"$f":"MAX(ISNUMBER(SEARCH({\"район\";\"город\";\"образований\"},F237))*({3;2;1}/1%%+G237%))","v":20000.02}]
[null,null,null,null,"Кемеровская область","Городской округ - город Ленинск-Кузнецкий",2,{"$f":"MAX(ISNUMBER(SEARCH({\"район\";\"город\";\"образований\"},F238))*({3;2;1}/1%%+G238%))","v":20000.02}]
[null,null,null,null,"Московская область","Городской округ Лыткарино",2,{"$f":"MAX(ISNUMBER(SEARCH({\"район\";\"город\";\"образований\"},F239))*({3;2;1}/1%%+G239%))","v":20000.02}]
[null,null,null,null,"Нижегородская область","Городской округ- город Дзержинск",2,{"$f":"MAX(ISNUMBER(SEARCH({\"район\";\"город\";\"образований\"},F240))*({3;2;1}/1%%+G240%))","v":20000.02}]
[null,null,null,null,"Пермский край","Кудымкарский городской округ",2,{"$f":"MAX(ISNUMBER(SEARCH({\"район\";\"город\";\"образований\"},F241))*({3;2;1}/1%%+G241%))","v":20000.02}]
[null,null,null,null,"Самарская область","Городской округ Чапаевск",2,{"$f":"MAX(ISNUMBER(SEARCH({\"район\";\"город\";\"образований\"},F242))*({3;2;1}/1%%+G242%))","v":20000.02}]
[null,null,null,null,"Сахалинская область","Городской округОхинский",2,{"$f":"MAX(ISNUMBER(SEARCH({\"район\";\"город\";\"образований\"},F243))*({3;2;1}/1%%+G243%))","v":20000.02}]
[null,null,null,null,"Сахалинская область","Томаринский городской округ",2,{"$f":"MAX(ISNUMBER(SEARCH({\"район\";\"город\";\"образований\"},F244))*({3;2;1}/1%%+G244%))","v":20000.02}]
[null,null,null,null,"Архангельская область","Городской округ - город Котлас",1,{"$f":"MAX(ISNUMBER(SEARCH({\"район\";\"город\";\"образований\"},F245))*({3;2;1}/1%%+G245%))","v":20000.009999999998}]
[null,null,null,null,"Забайкальский край","Городской округ - поселок Агинское",1,{"$f":"MAX(ISNUMBER(SEARCH({\"район\";\"город\";\"образований\"},F246))*({3;2;1}/1%%+G246%))","v":20000.009999999998}]
[null,null,null,null,"Иркутская область","Муниципальное образование Город Усть-Илимск",1,{"$f":"MAX(ISNUMBER(SEARCH({\"район\";\"город\";\"образований\"},F247))*({3;2;1}/1%%+G247%))","v":20000.009999999998}]
[null,null,null,null,"Кемеровская область","Городской округ - город Осинники",1,{"$f":"MAX(ISNUMBER(SEARCH({\"район\";\"город\";\"образований\"},F248))*({3;2;1}/1%%+G248%))","v":20000.009999999998}]
[null,null,null,null,"Кемеровская область","Городской округ - город Полысаево",1,{"$f":"MAX(ISNUMBER(SEARCH({\"район\";\"город\";\"образований\"},F249))*({3;2;1}/1%%+G249%))","v":20000.009999999998}]
[null,null,null,null,"Кировская область","Городской округ Город Котельнич",1,{"$f":"MAX(ISNUMBER(SEARCH({\"район\";\"город\";\"образований\"},F250))*({3;2;1}/1%%+G250%))","v":20000.009999999998}]
[null,null,null,null,"Краснодарский край","Городской округ - город Горячий Ключ",1,{"$f":"MAX(ISNUMBER(SEARCH({\"район\";\"город\";\"образований\"},F251))*({3;2;1}/1%%+G251%))","v":20000.009999999998}]
[null,null,null,null,"Курская область","Городской округ город Щигры",1,{"$f":"MAX(ISNUMBER(SEARCH({\"район\";\"город\";\"образований\"},F252))*({3;2;1}/1%%+G252%))","v":20000.009999999998}]
[null,null,null,null,"Московская область","Городской округ Жуковский",1,{"$f":"MAX(ISNUMBER(SEARCH({\"район\";\"город\";\"образований\"},F253))*({3;2;1}/1%%+G253%))","v":20000.009999999998}]
[null,null,null,null,"Московская область","Городской округ Красноармейск",1,{"$f":"MAX(ISNUMBER(SEARCH({\"район\";\"город\";\"образований\"},F254))*({3;2;1}/1%%+G254%))","v":20000.009999999998}]
[null,null,null,null,"Мурманская область","Городской округ  Александровск",1,{"$f":"MAX(ISNUMBER(SEARCH({\"район\";\"город\";\"образований\"},F255))*({3;2;1}/1%%+G255%))","v":20000.009999999998}]
[null,null,null,null,"Орловская область","Городской округ - город Ливны",1,{"$f":"MAX(ISNUMBER(SEARCH({\"район\";\"город\";\"образований\"},F256))*({3;2;1}/1%%+G256%))","v":20000.009999999998}]
[null,null,null,null,"Пермский край","Кунгурский городской округ",1,{"$f":"MAX(ISNUMBER(SEARCH({\"район\";\"город\";\"образований\"},F257))*({3;2;1}/1%%+G257%))","v":20000.009999999998}]
[null,null,null,null,"Пермский край","Лысьвенский городской округ",1,{"$f":"MAX(ISNUMBER(SEARCH({\"район\";\"город\";\"образований\"},F258))*({3;2;1}/1%%+G258%))","v":20000.009999999998}]
[null,null,null,null,"Республика Ингушетия","Городской округ - город Малгобек",1,{"$f":"MAX(ISNUMBER(SEARCH({\"район\";\"город\";\"образований\"},F259))*({3;2;1}/1%%+G259%))","v":20000.009999999998}]
[null,null,null,null,"Ростовская область","Городской округ Город Гуково",1,{"$f":"MAX(ISNUMBER(SEARCH({\"район\";\"город\";\"образований\"},F260))*({3;2;1}/1%%+G260%))","v":20000.009999999998}]
[null,null,null,null,"Ростовская область","Городской округ Город Каменск-Шахтинский",1,{"$f":"MAX(ISNUMBER(SEARCH({\"район\";\"город\";\"образований\"},F261))*({3;2;1}/1%%+G261%))","v":20000.009999999998}]
[null,null,null,null,"Самарская область","Городской округ  Жигулевск",1,{"$f":"MAX(ISNUMBER(SEARCH({\"район\";\"город\";\"образований\"},F262))*({3;2;1}/1%%+G262%))","v":20000.009999999998}]
[null,null,null,null,"Сахалинская область","Городской округ Охинский",1,{"$f":"MAX(ISNUMBER(SEARCH({\"район\";\"город\";\"образований\"},F263))*({3;2;1}/1%%+G263%))","v":20000.009999999998}]
[null,null,null,null,"Удмуртская Республика","Городской округ - город Воткинск",1,{"$f":"MAX(ISNUMBER(SEARCH({\"район\";\"город\";\"образований\"},F264))*({3;2;1}/1%%+G264%))","v":20000.009999999998}]
[null,null,null,null,"Ханты-Мансийский автономный округ - Югра","Городской округ город Мегион",1,{"$f":"MAX(ISNUMBER(SEARCH({\"район\";\"город\";\"образований\"},F265))*({3;2;1}/1%%+G265%))","v":20000.009999999998}]
[null,null,null,null,"Ямало-Ненецкий автономный округ","Городской округ город Лабытнанги",1,{"$f":"MAX(ISNUMBER(SEARCH({\"район\";\"город\";\"образований\"},F266))*({3;2;1}/1%%+G266%))","v":20000.009999999998}]
[null,null,null,null,"Ямало-Ненецкий автономный округ","Городской округ город Муравленко",1,{"$f":"MAX(ISNUMBER(SEARCH({\"район\";\"город\";\"образований\"},F267))*({3;2;1}/1%%+G267%))","v":20000.009999999998}]
[null,null,null,null,"Саратовская область ДОБАВЛ","7 образований",60,{"$f":"MAX(ISNUMBER(SEARCH({\"район\";\"город\";\"образований\"},F268))*({3;2;1}/1%%+G268%))","v":10000.6}]
[null,null,null,null,"Краснодарский край ДОБАВЛ","5 образований",35,{"$f":"MAX(ISNUMBER(SEARCH({\"район\";\"город\";\"образований\"},F269))*({3;2;1}/1%%+G269%))","v":10000.35}]
[null,null,null,null,"Ростовская область ДОБАВЛ","5 образований",34,{"$f":"MAX(ISNUMBER(SEARCH({\"район\";\"город\";\"образований\"},F270))*({3;2;1}/1%%+G270%))","v":10000.34}]
[null,null,null,null,"Астраханская область ДОБАВЛ","3 образований",33,{"$f":"MAX(ISNUMBER(SEARCH({\"район\";\"город\";\"образований\"},F271))*({3;2;1}/1%%+G271%))","v":10000.33}]
[null,null,null,null,"Нижегородская область ДОБАВЛ","3 образований",32,{"$f":"MAX(ISNUMBER(SEARCH({\"район\";\"город\";\"образований\"},F272))*({3;2;1}/1%%+G272%))","v":10000.32}]
[null,null,null,null,"Пермский край ДОБАВЛ","2 образований",30,{"$f":"MAX(ISNUMBER(SEARCH({\"район\";\"город\";\"образований\"},F273))*({3;2;1}/1%%+G273%))","v":10000.299999999999}]
[null,null,null,null,"Московская область ДОБАВЛ","12 образований",28,{"$f":"MAX(ISNUMBER(SEARCH({\"район\";\"город\";\"образований\"},F274))*({3;2;1}/1%%+G274%))","v":10000.280000000001}]
[null,null,null,null,"Липецкая область ДОБАВЛ","3 образований",25,{"$f":"MAX(ISNUMBER(SEARCH({\"район\";\"город\";\"образований\"},F275))*({3;2;1}/1%%+G275%))","v":10000.25}]
[null,null,null,null,"Республика Карелия ДОБАВЛ","3 образований",24,{"$f":"MAX(ISNUMBER(SEARCH({\"район\";\"город\";\"образований\"},F276))*({3;2;1}/1%%+G276%))","v":10000.24}]
[null,null,null,null,"Вологодская область ДОБАВЛ","2 образований",23,{"$f":"MAX(ISNUMBER(SEARCH({\"район\";\"город\";\"образований\"},F277))*({3;2;1}/1%%+G277%))","v":10000.23}]
[null,null,null,null,"Забайкальский край ДОБАВЛ","3 образований",23,{"$f":"MAX(ISNUMBER(SEARCH({\"район\";\"город\";\"образований\"},F278))*({3;2;1}/1%%+G278%))","v":10000.23}]
[null,null,null,null,"Удмуртская Республика ДОБАВЛ","1 образований",22,{"$f":"MAX(ISNUMBER(SEARCH({\"район\";\"город\";\"образований\"},F279))*({3;2;1}/1%%+G279%))","v":10000.219999999999}]
[null,null,null,null,"Ханты-Мансийский автономный округ - Югра ДОБАВЛ","7 образований",19,{"$f":"MAX(ISNUMBER(SEARCH({\"район\";\"город\";\"образований\"},F280))*({3;2;1}/1%%+G280%))","v":10000.19}]
[null,null,null,null,"Кемеровская область ДОБАВЛ","2 образований",18,{"$f":"MAX(ISNUMBER(SEARCH({\"район\";\"город\";\"образований\"},F281))*({3;2;1}/1%%+G281%))","v":10000.18}]
[null,null,null,null,"Тверская область ДОБАВЛ","3 образований",18,{"$f":"MAX(ISNUMBER(SEARCH({\"район\";\"город\";\"образований\"},F282))*({3;2;1}/1%%+G282%))","v":10000.18}]
[null,null,null,null,"Брянская область ДОБАВЛ","3 образований",17,{"$f":"MAX(ISNUMBER(SEARCH({\"район\";\"город\";\"образований\"},F283))*({3;2;1}/1%%+G283%))","v":10000.17}]
[null,null,null,null,"Архангельская область ДОБАВЛ","1 образований",16,{"$f":"MAX(ISNUMBER(SEARCH({\"район\";\"город\";\"образований\"},F284))*({3;2;1}/1%%+G284%))","v":10000.16}]
[null,null,null,null,"Республика Мордовия ДОБАВЛ","1 образований",16,{"$f":"MAX(ISNUMBER(SEARCH({\"район\";\"город\";\"образований\"},F285))*({3;2;1}/1%%+G285%))","v":10000.16}]
[null,null,null,null,"Кировская область ДОБАВЛ","1 образований",15,{"$f":"MAX(ISNUMBER(SEARCH({\"район\";\"город\";\"образований\"},F286))*({3;2;1}/1%%+G286%))","v":10000.15}]
[null,null,null,null,"Курская область ДОБАВЛ","2 образований",14,{"$f":"MAX(ISNUMBER(SEARCH({\"район\";\"город\";\"образований\"},F287))*({3;2;1}/1%%+G287%))","v":10000.14}]
[null,null,null,null,"Республика Саха (Якутия) ДОБАВЛ","2 образований",14,{"$f":"MAX(ISNUMBER(SEARCH({\"район\";\"город\";\"образований\"},F288))*({3;2;1}/1%%+G288%))","v":10000.14}]
[null,null,null,null,"Тульская область ДОБАВЛ","4 образований",14,{"$f":"MAX(ISNUMBER(SEARCH({\"район\";\"город\";\"образований\"},F289))*({3;2;1}/1%%+G289%))","v":10000.14}]
[null,null,null,null,"Ямало-Ненецкий автономный округ ДОБАВЛ","1 образований",9,{"$f":"MAX(ISNUMBER(SEARCH({\"район\";\"город\";\"образований\"},F290))*({3;2;1}/1%%+G290%))","v":10000.09}]
[null,null,null,null,"Амурская область ДОБАВЛ","3 образований",8,{"$f":"MAX(ISNUMBER(SEARCH({\"район\";\"город\";\"образований\"},F291))*({3;2;1}/1%%+G291%))","v":10000.08}]
[null,null,null,null,"Сахалинская область ДОБАВЛ","5 образований",8,{"$f":"MAX(ISNUMBER(SEARCH({\"район\";\"город\";\"образований\"},F292))*({3;2;1}/1%%+G292%))","v":10000.08}]
[null,null,null,null,"Республика Бурятия ДОБАВЛ","2 образований",7,{"$f":"MAX(ISNUMBER(SEARCH({\"район\";\"город\";\"образований\"},F293))*({3;2;1}/1%%+G293%))","v":10000.07}]
[null,null,null,null,"Республика Коми ДОБАВЛ","2 образований",6,{"$f":"MAX(ISNUMBER(SEARCH({\"район\";\"город\";\"образований\"},F294))*({3;2;1}/1%%+G294%))","v":10000.06}]
[null,null,null,null,"Новгородская область ДОБАВЛ","1 образований",5,{"$f":"MAX(ISNUMBER(SEARCH({\"район\";\"город\";\"образований\"},F295))*({3;2;1}/1%%+G295%))","v":10000.049999999999}]
[null,null,null,null,"Хабаровский край ДОБАВЛ","1 образований",5,{"$f":"MAX(ISNUMBER(SEARCH({\"район\";\"город\";\"образований\"},F296))*({3;2;1}/1%%+G296%))","v":10000.049999999999}]
[null,null,null,null,"Карачаево-Черкесская Республика ДОБАВЛ","3 образований",4,{"$f":"MAX(ISNUMBER(SEARCH({\"район\";\"город\";\"образований\"},F297))*({3;2;1}/1%%+G297%))","v":10000.040000000001}]
[null,null,null,null,"Иркутская область ДОБАВЛ","3 образований",3,{"$f":"MAX(ISNUMBER(SEARCH({\"район\";\"город\";\"образований\"},F298))*({3;2;1}/1%%+G298%))","v":10000.030000000001}]
[null,null,null,null,"Республика Алтай ДОБАВЛ","1 образований",3,{"$f":"MAX(ISNUMBER(SEARCH({\"район\";\"город\";\"образований\"},F299))*({3;2;1}/1%%+G299%))","v":10000.030000000001}]
[null,null,null,null,"Республика Башкортостан ДОБАВЛ","2 образований",3,{"$f":"MAX(ISNUMBER(SEARCH({\"район\";\"город\";\"образований\"},F300))*({3;2;1}/1%%+G300%))","v":10000.030000000001}]
[null,null,null,null,"Камчатский край ДОБАВЛ","2 образований",2,{"$f":"MAX(ISNUMBER(SEARCH({\"район\";\"город\";\"образований\"},F301))*({3;2;1}/1%%+G301%))","v":10000.02}]
[null,null,null,null,"Республика Ингушетия ДОБАВЛ","2 образований",2,{"$f":"MAX(ISNUMBER(SEARCH({\"район\";\"город\";\"образований\"},F302))*({3;2;1}/1%%+G302%))","v":10000.02}]
[null,null,null,null,"Республика Северная Осетия - Алания ДОБАВЛ","2 образований",2,{"$f":"MAX(ISNUMBER(SEARCH({\"район\";\"город\";\"образований\"},F303))*({3;2;1}/1%%+G303%))","v":10000.02}]
[null,null,null,null,"Курганская область ДОБАВЛ","1 образований",1,{"$f":"MAX(ISNUMBER(SEARCH({\"район\";\"город\";\"образований\"},F304))*({3;2;1}/1%%+G304%))","v":10000.01}]
[null,null,null,null,"Новосибирская область ДОБАВЛ","1 образований",1,{"$f":"MAX(ISNUMBER(SEARCH({\"район\";\"город\";\"образований\"},F305))*({3;2;1}/1%%+G305%))","v":10000.01}]
[null,null,null,null,"Орловская область ДОБАВЛ","1 образований",1,{"$f":"MAX(ISNUMBER(SEARCH({\"район\";\"город\";\"образований\"},F306))*({3;2;1}/1%%+G306%))","v":10000.01}]
[null,null,null,null,"Пензенская область ДОБАВЛ","1 образований",1,{"$f":"MAX(ISNUMBER(SEARCH({\"район\";\"город\";\"образований\"},F307))*({3;2;1}/1%%+G307%))","v":10000.01}]
[null,null,null,null,"Тюменская область ДОБАВЛ","1 образований",1,{"$f":"MAX(ISNUMBER(SEARCH({\"район\";\"город\";\"образований\"},F308))*({3;2;1}/1%%+G308%))","v":10000.01}]
[null,null,null,null,"Еврейская автономная область ДОБАВЛ","0 образований",0,{"$f":"MAX(ISNUMBER(SEARCH({\"район\";\"город\";\"образований\"},F309))*({3;2;1}/1%%+G309%))","v":10000}]
[null,null,null,null,"Костромская область ДОБАВЛ","0 образований",0,{"$f":"MAX(ISNUMBER(SEARCH({\"район\";\"город\";\"образований\"},F310))*({3;2;1}/1%%+G310%))","v":10000}]
[null,null,null,null,"Мурманская область ДОБАВЛ","0 образований",0,{"$f":"MAX(ISNUMBER(SEARCH({\"район\";\"город\";\"образований\"},F311))*({3;2;1}/1%%+G311%))","v":10000}]
[null,null,null,null,"Ненецкий автономный округ ДОБАВЛ","0 образований",0,{"$f":"MAX(ISNUMBER(SEARCH({\"район\";\"город\";\"образований\"},F312))*({3;2;1}/1%%+G312%))","v":10000}]
[null,null,null,null,"Самарская область ДОБАВЛ","0 образований",0,{"$f":"MAX(ISNUMBER(SEARCH({\"район\";\"город\";\"образований\"},F313))*({3;2;1}/1%%+G313%))","v":10000}]
[null,null,null,null,"Томская область ДОБАВЛ","0 образований",0,{"$f":"MAX(ISNUMBER(SEARCH({\"район\";\"город\";\"образований\"},F314))*({3;2;1}/1%%+G314%))","v":10000}]
[null,null,null,null,"Иркутская область","Шелеховский муниципальное образование",3,{"$f":"MAX(ISNUMBER(SEARCH({\"район\";\"город\";\"образований\"},F315))*({3;2;1}/1%%+G315%))","v":0}]